bitfinex-derivatives/quotes_ETHF0:USTF0_20251005
["timestamp","ask_amount","ask_price","bid_price","bid_amount"]
[1759660997346,0.46326,4538.1,4538.0,3.6272]
[1759660997550,0.425,4537.6,4537.5,0.6906]
[1759660997738,0.425,4537.6,4537.5,0.91505439]
[1759660997943,0.0216,4536.9,4536.7,0.17596309]
[1759660998145,0.42507,4536.8,4536.7,0.17596309]
[1759660998338,0.42507,4536.8,4536.7,0.39796309]
[1759660998651,0.42507,4536.8,4536.7,0.66916309]
[1759660998848,0.42507,4536.8,4536.7,0.49549903]
[1759660999046,5.42507,4536.8,4536.7,0.00229903]
[1759660999251,5.42507,4536.8,4536.7,0.22429903]
[1759661000963,5.42507,4536.8,4536.7,0.00229903]
[1759661002564,5.42507,4536.8,4536.7,1.41219903]
[1759661002565,0.0108,4536.8,4536.7,1.41219903]
[1759661003360,0.39664,4537.3,4537.0,0.2002]
[1759661003560,0.39664,4537.3,4537.2,1.1879]
[1759661003561,0.40744,4537.3,4537.2,1.1879]
[1759661005365,0.41824,4537.3,4537.2,0.8412]
[1759661005563,1.05027,4536.8,4536.7,3.90479903]
[1759661005755,1.05027,4536.8,4536.7,4.12679903]
[1759661005959,1.05027,4536.8,4536.7,0.91899903]
[1759661007561,1.05027,4536.8,4536.7,1.41219903]
[1759661007963,1.05027,4536.8,4536.7,1.19019903]
[1759661008166,1.05027,4536.8,4536.7,1.41219903]
[1759661008968,1.05027,4536.8,4536.7,1.19019903]
[1759661009168,1.05027,4536.8,4536.7,1.41219903]
[1759661009765,0.39667,4536.8,4536.7,1.41219903]
[1759661010568,3.5358,4537.4,4537.3,1.1879]
[1759661010768,3.93242,4537.4,4537.3,1.1879]
[1759661011470,4.72182,4537.4,4537.3,1.1879]
[1759661011669,1.53865,4537.1,4537.0,1.0323]
[1759661011868,1.53865,4537.1,4537.0,0.8321]
[1759661012966,1.53865,4537.1,4537.0,0.5083]
[1759661014271,1.53865,4537.1,4537.0,0.8321]
[1759661014473,1.53865,4537.1,4537.0,1.0425]
[1759661014965,1.07975,4537.1,4537.0,1.3654]
[1759661015164,0.39665,4537.1,4537.0,1.3654]
[1759661016072,0.74405,4537.1,4537.0,1.3654]
[1759661016466,1.07975,4537.1,4537.0,1.3654]
[1759661018473,0.39665,4537.1,4537.0,1.3654]
[1759661022972,1.53865,4537.1,4537.0,1.3654]
[1759661024974,1.07975,4537.1,4537.0,1.3654]
[1759661025373,0.74405,4537.1,4537.0,1.3654]
[1759661027673,1.07945,4537.1,4537.0,1.3654]
[1759661027874,0.39664,4537.2,4537.1,1.1331]
[1759661029181,0.73884,4537.2,4537.1,1.1331]
[1759661030385,0.39664,4537.2,4537.1,1.1331]
[1759661030682,0.73884,4537.2,4537.1,1.1331]
[1759661030982,0.39664,4537.2,4537.1,1.1331]
[1759661032078,0.39663,4537.4,4537.1,1.3551]
[1759661032284,0.39663,4537.3,4537.2,0.4866]
[1759661032581,0.39663,4537.4,4537.3,1.52972]
[1759661032979,0.39663,4537.4,4537.3,1.1331]
[1759661035182,0.3966,4537.7,4537.6,1.0431]
[1759661035383,0.3966,4537.7,4537.6,1.7517]
[1759661036082,0.3966,4537.7,4537.6,1.3551]
[1759661037484,3.2078,4537.9,4537.8,0.6465]
[1759661037685,3.2078,4537.9,4537.8,1.1331]
[1759661038476,0.7855,4537.9,4537.8,0.3244]
[1759661038682,0.39658,4537.9,4537.8,0.6465]
[1759661038883,0.39658,4537.9,4537.8,1.1331]
[1759661039483,0.39657,4538.0,4537.8,0.6465]
[1759661039675,0.39657,4538.0,4537.5,0.4228]
[1759661039676,0.73197,4538.0,4537.9,1.033]
[1759661039882,1.52427,4538.0,4537.9,0.811]
[1759661040084,1.0742,4537.6,4537.5,0.5252]
[1759661040283,1.0742,4537.6,4537.5,0.7472]
[1759661040483,1.0742,4537.6,4537.5,1.0693]
[1759661040681,1.5243,4537.6,4537.5,1.3339]
[1759661040884,1.5243,4537.6,4537.5,1.2338]
[1759661041288,0.39665,4537.1,4537.0,0.2008]
[1759661041491,0.39665,4537.1,4536.7,4.00237253]
[1759661041492,1.07427,4536.8,4536.7,0.64879903]
[1759661041795,1.52428,4537.9,4537.8,0.3244]
[1759661042088,1.07418,4537.9,4537.8,0.811]
[1759661042292,1.5243,4537.6,4537.5,1.0118]
[1759661042785,0.39665,4537.1,4537.0,0.2008]
[1759661042989,1.07425,4537.1,4537.0,1.0693]
[1759661043591,1.07425,4537.1,4537.0,1.3339]
[1759661043785,1.07425,4537.1,4537.0,1.5559]
[1759661043786,0.39665,4537.1,4537.0,1.5559]
[1759661043986,0.99145,4537.9,4537.0,1.5559]
[1759661043987,0.39664,4537.3,4537.2,1.1331]
[1759661047188,3.2078,4538.0,4537.2,1.1331]
[1759661047393,0.39663,4537.4,4537.3,0.4866]
[1759661047597,0.39663,4537.4,4537.3,1.1331]
[1759661050088,0.3966,4537.8,4537.7,0.8087]
[1759661050293,0.3966,4537.8,4537.7,1.75169]
[1759661050491,0.3966,4537.8,4537.7,1.3551]
[1759661050692,1.0742,4537.8,4537.7,1.3551]
[1759661050995,1.5243,4537.8,4537.7,0.7086]
[1759661052191,1.5243,4537.8,4537.7,1.033]
[1759661053697,1.5243,4537.8,4537.7,1.3551]
[1759661053698,0.7388,4537.8,4537.7,1.3551]
[1759661054097,0.3966,4537.8,4537.7,1.3551]
[1759661054292,0.3966,4537.8,4537.7,1.75169]
[1759661054498,3.55,4538.0,4537.9,1.1331]
[1759661054695,3.2078,4538.0,4537.9,1.1331]
[1759661054894,3.60437,4538.0,4537.9,1.1331]
[1759661055092,3.60437,4538.0,4537.9,1.52968]
[1759661055290,0.39657,4538.0,4537.9,1.52968]
[1759661055896,0.39657,4538.0,4537.9,1.1331]
[1759661056096,0.39657,4538.0,4537.9,1.52968]
[1759661056893,3.2078,4538.6,4538.0,1.73045]
[1759661056894,0.39656,4538.1,4538.0,1.73045]
[1759661057391,3.2078,4538.6,4538.0,0.8473]
[1759661057597,4.27732,4538.6,4538.5,1.3807]
[1759661057997,4.71012,4538.6,4538.5,1.3807]
[1759661058295,1.50233,4538.4,4538.3,0.222]
[1759661058499,1.50233,4538.4,4538.3,0.716]
[1759661058798,1.50233,4538.4,4538.3,0.222]
[1759661059005,1.06953,4538.4,4538.3,1.3996]
[1759661059496,0.39653,4538.4,4538.3,1.3996]
[1759661060293,0.72513,4538.4,4538.3,1.3996]
[1759661060492,1.50233,4538.4,4538.3,1.3996]
[1759661060891,1.06953,4538.4,4538.3,1.3996]
[1759661063004,1.50233,4538.4,4538.3,0.716]
[1759661063403,1.50233,4538.4,4538.3,1.0609]
[1759661064505,1.06953,4538.4,4538.3,1.3996]
[1759661064799,0.39653,4538.4,4538.3,1.3996]
[1759661065001,0.673,4538.9,4538.8,0.6836]
[1759661065205,0.72509,4538.9,4538.8,1.1776]
[1759661066508,0.39649,4538.9,4538.8,1.1776]
[1759661067604,0.3989952,4539.0,4538.8,0.6836]
[1759661067809,0.0025052,4539.0,4538.9,1.57409]
[1759661068603,0.3989852,4539.0,4538.9,1.57409]
[1759661069707,0.3989852,4539.0,4538.9,1.1776]
[1759661073006,0.99124,4538.9,4538.1,3.2078]
[1759661073209,0.6452,4538.6,4538.5,0.8465]
[1759661073706,0.0025052,4539.0,4538.5,0.8465]
[1759661073707,0.39651,4538.7,4538.5,0.8465]
[1759661073911,0.39651,4538.7,4538.6,1.51032]
[1759661074105,0.39651,4538.7,4538.6,1.1138]
[1759661074306,1.04171,4538.7,4538.6,1.1138]
[1759661074705,1.46661,4538.7,4538.6,1.1138]
[1759661074906,1.46661,4538.7,4538.6,0.7862]
[1759661075409,1.04171,4538.7,4538.6,1.1138]
[1759661075814,1.46661,4538.7,4538.6,1.1138]
[1759661076112,1.46661,4538.7,4538.6,0.4677]
[1759661076909,1.46661,4538.7,4538.6,0.7862]
[1759661077110,0.4249,4538.4,4538.2,0.4677]
[1759661077306,1.46664,4538.3,4538.2,1.0082]
[1759661079208,1.04174,4538.3,4538.2,1.3358]
[1759661081718,3.5373,4539.4,4539.3,0.3185]
[1759661082018,4.67435,4539.4,4539.3,1.1138]
[1759661082217,4.67435,4539.4,4539.3,0.7862]
[1759661082613,1.0701,4539.1,4538.5,0.2004]
[1759661082813,1.0701,4539.0,4538.9,0.3185]
[1759661083011,1.46658,4539.0,4538.9,0.3185]
[1759661083211,1.04168,4539.0,4538.9,1.1138]
[1759661086120,0.72598,4539.0,4538.9,1.1138]
[1759661087120,0.39648,4539.0,4538.9,1.1138]
[1759661088320,0.39647,4539.2,4539.1,1.129]
[1759661090024,3.54959686,4539.4,4539.3,1.52545]
[1759661090226,3.94604686,4539.4,4539.3,1.129]
[1759661090524,3.60654686,4539.4,4539.3,1.129]
[1759661090822,3.21009686,4539.4,4539.3,1.52545]
[1759661091023,0.39874686,4539.4,4539.3,1.52545]
[1759661092226,0.39874686,4539.4,4539.3,1.129]
[1759661092425,0.39874686,4539.4,4539.3,1.52545]
[1759661092626,0.39874686,4539.4,4539.3,1.129]
[1759661092832,0.73824686,4539.4,4539.3,1.129]
[1759661093032,0.00229686,4539.4,4539.3,1.52545]
[1759661093232,0.39874686,4539.4,4539.3,1.52545]
[1759661093529,0.00229686,4539.4,4539.3,1.52545]
[1759661093730,0.39874686,4539.4,4539.3,1.52545]
[1759661097840,0.00229686,4539.4,4539.3,1.52545]
[1759661098240,0.39874686,4539.4,4539.3,1.52545]
[1759661098640,0.00229686,4539.4,4539.3,1.52545]
[1759661099139,0.39874686,4539.4,4539.3,1.52545]
[1759661100243,0.00229686,4539.4,4539.3,1.52545]
[1759661100643,0.39874686,4539.4,4539.3,1.52545]
[1759661101144,0.00229686,4539.4,4539.3,1.52545]
[1759661101642,0.00229686,4539.4,4539.3,9.73325]
[1759661101840,3.2078,4540.5,4540.4,1.129]
[1759661102044,0.4192,4541.5,4541.0,0.8432]
[1759661102045,3.2078,4541.1,4541.0,0.8432]
[1759661102247,3.9436,4541.1,4541.0,1.5372]
[1759661102449,3.6041,4541.1,4541.0,1.5372]
[1759661102844,3.60639607,4541.1,4541.0,1.54005816]
[1759661103043,3.21009607,4541.1,4541.0,1.54005816]
[1759661103347,0.00229607,4541.1,4541.0,1.54005816]
[1759661104342,0.39623,4541.9,4541.8,1.129]
[1759661104542,0.39623,4541.9,4541.8,1.351]
[1759661104736,0.39625,4541.6,4541.5,0.1862]
[1759661104948,3.2078,4542.3,4541.5,1.0642]
[1759661105144,3.2078,4542.3,4542.1,1.129]
[1759661105145,0.7357,4542.2,4542.1,1.129]
[1759661105352,1.06263354,4542.2,4542.1,1.129]
[1759661105951,1.48183354,4542.2,4542.1,1.129]
[1759661109151,1.06263354,4542.2,4542.1,1.129]
[1759661109947,0.39843354,4542.2,4542.1,1.129]
[1759661111943,0.00223354,4542.2,4542.1,1.129]
[1759661113251,0.00223354,4542.2,4542.1,1.74621]
[1759661115551,0.00223354,4542.2,4542.1,6.74621]
[1759661117952,0.02368079,4542.4,4542.3,1.03419]
[1759661118149,0.02368079,4542.4,4542.3,1.53019]
[1759661118646,0.022,4542.9,4542.8,0.72725]
[1759661118852,0.02436274,4542.9,4542.8,1.75115]
[1759661122852,0.42050274,4542.9,4542.8,1.355]
[1759661123060,0.73770274,4542.9,4542.8,1.134]
[1759661123259,0.73770274,4542.9,4542.8,1.75115]
[1759661123559,0.02436274,4542.9,4542.8,1.75115]
[1759661126853,0.42050274,4542.9,4542.8,1.75115]
[1759661127059,0.02436274,4542.9,4542.8,1.75115]
[1759661127255,0.42050274,4542.9,4542.8,1.75115]
[1759661127862,0.42050274,4542.9,4542.8,1.53015]
[1759661128050,0.73770274,4542.9,4542.8,1.53015]
[1759661128256,0.73770274,4542.9,4542.8,1.75115]
[1759661129461,0.02436274,4542.9,4542.8,1.75115]
[1759661137762,0.34076274,4542.9,4542.8,1.53015]
[1759661138067,0.02436274,4542.9,4542.8,1.75115]
[1759661143065,3.2078,4543.9,4543.8,1.53746]
[1759661143274,3.2078,4543.9,4543.8,1.75846]
[1759661143466,3.5242,4543.9,4543.8,1.75846]
[1759661143964,3.52698098,4543.9,4543.8,1.75846]
[1759661145260,0.00278098,4543.9,4543.8,1.75846]
[1759661145968,0.00278098,4543.9,4543.8,2.34881718]
[1759661146167,0.00278098,4543.9,4543.8,2.35168398]
[1759661146566,0.6175,4544.9,4544.8,1.53737]
[1759661146765,0.6175,4544.9,4544.8,1.3624]
[1759661146968,1.039,4544.9,4544.8,1.0392]
[1759661147470,0.6193048,4544.9,4544.8,1.14366513]
[1759661147667,0.6193048,4544.9,4544.8,1.36466513]
[1759661148170,0.3240048,4544.9,4544.8,1.36466513]
[1759661150170,0.6480048,4544.9,4544.8,1.36466513]
[1759661150475,0.3240048,4544.9,4544.8,1.36466513]
[1759661151274,1.0610048,4544.9,4544.8,1.36466513]
[1759661152374,0.6480048,4544.9,4544.8,1.53963513]
[1759661152576,0.6480048,4544.9,4544.8,1.36466513]
[1759661154076,0.0018048,4544.9,4544.8,1.36466513]
[1759661154672,3.2078,4546.0,4545.5,0.1837]
[1759661154874,0.6462,4545.8,4545.6,0.221]
[1759661155077,0.3222,4545.8,4545.7,1.0951]
[1759661155377,0.3222,4545.8,4545.7,1.3161]
[1759661155573,0.3222,4545.8,4545.7,1.0951]
[1759661155771,0.32442066,4545.8,4545.7,1.3161]
[1759661156276,0.64842066,4545.8,4545.7,1.3161]
[1759661156476,1.06322066,4545.8,4545.7,1.3161]
[1759661157374,0.64842066,4545.8,4545.7,1.3161]
[1759661157574,1.06322066,4545.8,4545.7,1.3161]
[1759661158780,0.64842066,4545.8,4545.7,1.3161]
[1759661159781,0.00222066,4545.8,4545.7,1.3161]
[1759661159975,0.32442066,4545.8,4545.7,1.3161]
[1759661160376,0.00222066,4545.8,4545.7,1.3161]
[1759661161382,0.32442066,4545.8,4545.7,1.3161]
[1759661161784,0.64842066,4545.8,4545.7,1.3161]
[1759661161977,1.06322066,4545.8,4545.7,1.0112]
[1759661162677,5.74102066,4545.8,4545.5,0.4828]
[1759661162875,1.04215,4545.1,4545.0,0.9739]
[1759661163189,1.45696,4544.9,4544.8,1.01346513]
[1759661163382,1.04216,4544.9,4544.8,1.71433513]
[1759661163684,1.45696,4544.9,4544.8,1.09736513]
[1759661163873,0.39594,4545.2,4545.0,0.1837]
[1759661164081,0.3222,4545.1,4545.0,0.1837]
[1759661164281,0.6462,4545.1,4545.0,0.796]
[1759661164587,0.6462,4545.1,4545.0,1.2788]
[1759661164781,6.061,4545.1,4545.0,0.4828]
[1759661164987,0.39596,4545.0,4544.8,0.00226513]
[1759661165185,0.6462,4544.9,4544.8,0.79246513]
[1759661165484,0.6462,4544.9,4544.8,1.09736513]
[1759661165683,1.061,4544.9,4544.8,0.79246513]
[1759661165890,1.061,4544.9,4544.8,1.01346513]
[1759661166491,0.6462,4544.9,4544.8,1.01346513]
[1759661166689,1.061,4544.9,4544.8,1.01346513]
[1759661166887,1.061,4544.9,4544.8,0.00226513]
[1759661167083,9.2688,4544.9,4544.8,0.00226513]
[1759661170095,9.2688,4544.9,4544.8,0.48506513]
[1759661170396,4.2688,4544.9,4544.8,0.79246513]
[1759661170689,1.18413,4544.1,4544.0,0.7988]
[1759661170896,1.18413,4544.1,4544.0,1.0198]
[1759661171195,1.50813,4544.1,4544.0,0.8333]
[1759661171591,1.50813,4544.1,4544.0,0.6123]
[1759661171894,1.50813,4544.1,4544.0,0.83487878]
[1759661172894,1.50813,4544.1,4544.0,1.31767878]
[1759661175295,0.39603,4544.1,4544.0,1.50137878]
[1759661175995,0.39603,4544.1,4544.0,1.89741878]
[1759661176793,0.39603,4544.1,4544.0,1.50137878]
[1759661176994,0.71823,4544.1,4544.0,1.50137878]
[1759661177202,0.39603,4544.1,4544.0,1.50137878]
[1759661177496,0.39603,4544.1,4544.0,1.89741878]
[1759661177899,0.39602,4544.3,4544.2,1.44472]
[1759661178291,0.71502,4544.3,4544.2,1.44472]
[1759661178496,0.319,4544.3,4544.2,1.44472]
[1759661178694,3.60381,4544.4,4544.3,1.44472]
[1759661179396,3.92281,4544.4,4544.3,1.44472]
[1759661180098,3.5268,4544.4,4544.3,1.44472]
[1759661180296,4.37515,4545.1,4545.0,1.0487]
[1759661180500,4.37515,4545.1,4545.0,1.229]
[1759661181399,3.92275,4545.1,4545.0,1.229]
[1759661181802,3.92275,4545.1,4545.0,1.62496]
[1759661182194,3.60375,4545.1,4545.0,1.62496]
[1759661182391,3.2078,4545.1,4545.0,1.62496]
[1759661182898,0.39593,4545.3,4545.2,1.0487]
[1759661183204,0.71493,4545.3,4545.2,1.2697]
[1759661183905,1.16733,4545.3,4545.2,1.2697]
[1759661184097,0.39592,4545.5,4545.4,1.0487]
[1759661184994,0.3959,4545.7,4545.6,1.0487]
[1759661185194,0.3959,4545.7,4545.6,1.2697]
[1759661185905,0.319,4545.7,4545.6,1.2236]
[1759661186094,0.319,4545.7,4545.6,1.6656]
[1759661186500,1.0817,4545.7,4545.6,1.2697]
[1759661187106,1.0827,4545.7,4545.6,1.2697]
[1759661188009,1.0827,4545.7,4545.6,0.9693]
[1759661188696,1.0827,4545.7,4545.3,0.39593]
[1759661188697,1.47762,4545.4,4545.3,0.5273]
[1759661189108,1.47762,4545.4,4545.3,0.9693]
[1759661190403,1.47762,4545.4,4545.3,1.2697]
[1759661192204,0.3132,4545.7,4545.6,0.2887]
[1759661192409,0.3132,4545.7,4545.6,1.0548]
[1759661192609,1.4686,4545.7,4545.6,1.0548]
[1759661194816,1.46764,4545.2,4545.1,0.7548]
[1759661195106,4.67544,4545.2,4545.1,0.2887]
[1759661195309,1.6298,4545.0,4544.6,0.7548]
[1759661195508,4.67548,4544.7,4544.6,0.7548]
[1759661195713,4.67548,4544.7,4544.6,1.2758]
[1759661197014,4.67548,4544.7,4544.6,0.7548]
[1759661197309,1.01683,4544.1,4544.0,0.29027878]
[1759661197511,1.46773,4544.1,4544.0,0.97737878]
[1759661198309,1.46773,4544.1,4544.0,0.75637878]
[1759661198510,1.46773,4544.1,4544.0,0.97737878]
[1759661199212,1.46773,4544.1,4544.0,0.75637878]
[1759661199412,1.46773,4544.1,4544.0,0.97737878]
[1759661199612,1.46773,4544.1,4543.6,0.7922735]
[1759661199613,0.4509,4543.6,4543.2,3.800018]
[1759661199802,1.0717,4543.6,4543.5,0.7548]
[1759661200006,1.0717,4543.6,4543.5,1.0548]
[1759661200207,0.4509,4543.6,4543.5,1.0548]
[1759661200412,0.7631,4543.6,4543.5,1.0548]
[1759661200716,1.0717,4543.6,4543.5,1.05667249]
[1759661202812,1.0717,4543.6,4543.5,0.00187249]
[1759661203012,1.0717,4543.6,4543.5,0.22287249]
[1759661203213,1.0717,4543.6,4543.5,0.00187249]
[1759661203417,1.0717,4543.6,4543.5,0.22287249]
[1759661206915,1.01695,4542.8,4542.7,4.2626]
[1759661207115,1.01695,4542.8,4542.7,4.4836]
[1759661207116,1.46785,4542.8,4542.7,4.4836]
[1759661207312,0.189,4543.5,4543.0,0.4686]
[1759661207520,0.2972,4543.2,4543.1,1.0971]
[1759661207815,0.2972,4543.2,4543.1,1.099328]
[1759661208022,0.7445,4543.2,4543.1,1.099328]
[1759661208322,1.0469,4543.2,4543.1,1.099328]
[1759661209022,1.0469,4543.2,4543.1,1.320328]
[1759661210720,1.44301,4543.2,4543.1,1.320328]
[1759661211015,0.39611,4543.2,4543.1,1.716448]
[1759661212220,1.44301,4543.2,4543.1,1.320328]
[1759661212421,1.0469,4543.2,4543.1,1.716448]
[1759661212617,0.5996,4543.2,4543.1,1.716448]
[1759661212822,0.99571,4543.2,4543.1,1.716448]
[1759661213524,0.3961,4543.3,4543.2,0.3961]
[1759661213826,0.3961,4543.3,4543.2,1.4932]
[1759661214923,0.3961,4543.3,4543.2,1.49321]
[1759661215921,0.4473,4544.6,4543.6,0.316]
[1759661216123,0.001,4545.7,4543.6,0.316]
[1759661216124,0.3024,4544.2,4544.1,0.7846]
[1759661216329,0.3024,4544.2,4544.1,0.221]
[1759661216330,1.0469,4544.2,4544.1,0.221]
[1759661216619,0.5996,4543.8,4543.7,0.316]
[1759661216922,0.99005,4544.4,4543.1,0.002228]
[1759661216923,1.62879,4543.5,4543.4,0.7846]
[1759661217224,1.62879,4543.5,4543.4,1.0056]
[1759661217823,0.3961,4543.3,4543.2,0.39611]
[1759661218120,1.443,4543.3,4543.2,1.71421]
[1759661218318,1.443,4543.3,4543.2,1.3181]
[1759661219828,1.443,4543.3,4543.1,0.223228]
[1759661220629,1.443,4543.3,4543.2,0.316]
[1759661220826,1.443,4543.3,4543.2,0.7846]
[1759661221532,1.443,4543.3,4543.1,0.223228]
[1759661222031,1.443,4543.3,4543.1,0.002228]
[1759661222429,1.443,4543.3,4543.1,0.470828]
[1759661222833,1.443,4543.3,4543.1,0.866948]
[1759661223027,1.0469,4543.2,4543.1,1.182948]
[1759661223530,1.0469,4543.2,4543.1,0.786828]
[1759661223726,1.0469,4543.2,4543.1,0.002228]
[1759661226131,0.4473,4543.2,4543.1,0.630728]
[1759661226332,1.0469,4543.3,4543.2,1.49321]
[1759661226533,1.0469,4543.3,4543.2,1.0971]
[1759661227537,1.0469,4543.3,4543.2,0.316]
[1759661227737,1.44301,4543.2,4543.1,0.002228]
[1759661229338,1.44301,4543.2,4543.1,0.318228]
[1759661229546,1.44301,4543.2,4543.1,0.786828]
[1759661230244,3.2078,4543.5,4543.3,0.3961]
[1759661230443,3.2078,4543.5,4543.4,1.0971]
[1759661230639,1.14056,4543.8,4543.7,1.0971]
[1759661231439,1.44296,4543.8,4543.7,1.0971]
[1759661231644,0.99566,4543.8,4543.7,1.0971]
[1759661231945,0.69326,4543.8,4543.7,1.0971]
[1759661232441,3.2078,4544.5,4543.9,0.316]
[1759661232641,3.2078,4544.5,4544.4,1.0971]
[1759661232844,0.4473,4544.8,4544.4,1.0971]
[1759661232845,0.2972,4544.8,4544.7,1.02448]
[1759661233139,3.505,4545.1,4545.0,1.2687]
[1759661233446,4.2547,4545.1,4545.0,1.0971]
[1759661233848,4.2547,4545.1,4545.0,1.3181]
[1759661234346,4.2547,4545.1,4545.0,1.4897]
[1759661235843,0.69313,4545.4,4545.3,1.0971]
[1759661236149,1.14043,4545.4,4545.3,1.0971]
[1759661236349,1.14042,4545.4,4545.3,1.0971]
[1759661236944,0.7445,4545.4,4545.3,1.0971]
[1759661237241,3.5045,4545.6,4545.5,1.216]
[1759661237443,0.001,4545.7,4545.6,0.3959]
[1759661237651,0.001,4545.7,4545.6,1.4241]
[1759661240548,0.001,4545.7,4545.6,6.4241]
[1759661246457,0.001,4545.7,4545.6,1.4241]
[1759661247559,0.001,4545.7,4545.6,0.2906]
[1759661247560,1.0342,4545.7,4545.6,0.2906]
[1759661247759,1.43009,4545.7,4545.6,0.5116]
[1759661248654,1.43009,4545.7,4545.3,0.4335]
[1759661248655,0.39592,4545.4,4545.3,0.7241]
[1759661248854,0.69266,4544.9,4544.8,4.19847]
[1759661249059,1.42916,4544.9,4544.8,4.41947]
[1759661249252,1.42916,4544.9,4544.8,3.8025]
[1759661249460,1.42916,4544.9,4544.8,4.457]
[1759661251156,1.42916,4544.9,4544.8,3.8025]
[1759661251358,1.42916,4544.9,4544.8,4.457]
[1759661251858,0.448,4545.2,4544.8,4.0235]
[1759661252059,1.0209,4544.9,4544.8,3.7273]
[1759661252259,1.0209,4544.9,4544.8,4.019]
[1759661252564,1.0209,4544.9,4544.8,4.4446]
[1759661253762,0.98979,4545.6,4544.8,4.4446]
[1759661253763,0.39586,4546.1,4546.0,0.7682]
[1759661253956,0.39586,4546.1,4546.0,1.1938]
[1759661254766,0.39776754,4546.1,4546.0,1.1938]
[1759661254966,0.68076754,4546.1,4546.0,1.1938]
[1759661257466,0.28490754,4546.1,4546.0,1.1938]
[1759661258056,0.00190754,4546.1,4546.0,1.1938]
[1759661259862,0.39776754,4546.1,4546.0,1.58967]
[1759661260062,0.39776754,4546.1,4546.0,1.1938]
[1759661260965,0.68076754,4546.1,4546.0,1.1938]
[1759661261472,0.39776754,4546.1,4546.0,1.58967]
[1759661262375,0.39776754,4546.1,4546.0,1.1938]
[1759661262870,0.68076754,4546.1,4546.0,1.1938]
[1759661263071,0.68076754,4546.1,4546.0,1.58967]
[1759661263472,0.39776754,4546.1,4546.0,1.58967]
[1759661264176,0.00190754,4546.1,4546.0,1.58967]
[1759661266879,0.00190754,4546.1,4546.0,1.81067]
[1759661268674,0.39776754,4546.1,4546.0,1.81067]
[1759661269780,0.00190754,4546.1,4546.0,1.81067]
[1759661269982,0.00190754,4546.1,4546.0,1.4148]
[1759661270282,0.30130754,4546.1,4546.0,1.4148]
[1759661270479,0.69716754,4546.1,4546.0,1.4148]
[1759661271883,0.69716754,4546.1,4546.0,1.81067]
[1759661272187,0.69716754,4546.1,4546.0,1.4148]
[1759661272188,1.00046754,4546.1,4546.0,1.4148]
[1759661273182,1.00046754,4546.1,4546.0,1.1938]
[1759661273779,0.00190754,4546.1,4546.0,1.1938]
[1759661273979,0.69515,4547.4,4547.3,1.0279]
[1759661274874,0.69722565,4547.4,4547.3,1.03043037]
[1759661275182,0.00207565,4547.4,4547.3,1.03043037]
[1759661280082,0.60477565,4547.4,4547.3,1.03043037]
[1759661280584,0.60477565,4547.4,4547.3,0.00253037]
[1759661280585,9.08617565,4547.4,4547.3,0.00253037]
[1759661281286,0.99852,4546.6,4546.5,0.9011]
[1759661281882,0.99852,4546.6,4546.5,1.2014]
[1759661282279,0.99852,4546.6,4546.5,1.20306222]
[1759661282485,0.39582,4546.6,4546.5,1.20306222]
[1759661282685,0.39582,4546.6,4546.5,1.59889222]
[1759661283478,0.39582,4546.6,4546.5,1.20306222]
[1759661283683,0.3958,4546.8,4546.7,0.6006]
[1759661283883,0.3958,4546.8,4546.7,1.0279]
[1759661284084,0.6952,4546.8,4546.7,1.0279]
[1759661284289,1.2721,4546.8,4546.7,1.0279]
[1759661284490,3.60359,4546.9,4546.8,0.4273]
[1759661284685,0.69519,4546.9,4546.8,1.0279]
[1759661285491,1.27209,4546.9,4546.8,0.7276]
[1759661285689,0.39582,4546.6,4546.5,0.17516222]
[1759661285985,0.39582,4546.6,4546.5,0.90276222]
[1759661285986,0.99852,4546.6,4546.5,0.90276222]
[1759661286594,0.99852,4546.6,4546.5,1.20306222]
[1759661292990,1.27212,4546.6,4546.5,0.90276222]
[1759661293189,1.27212,4546.6,4546.5,0.60246222]
[1759661293489,1.27212,4546.6,4546.5,0.42896222]
[1759661293887,1.27212,4546.6,4546.5,0.90276222]
[1759661295493,0.99852,4546.6,4546.5,0.90276222]
[1759661296899,0.39582,4546.6,4546.5,1.20306222]
[1759661297494,0.69522,4546.6,4546.5,1.20306222]
[1759661298105,1.00202,4546.6,4546.5,1.20306222]
[1759661303509,1.00202,4546.6,4546.5,1.59889222]
[1759661303708,1.00202,4546.6,4546.5,1.20306222]
[1759661324116,0.39582,4546.6,4546.5,1.20306222]
[1759661324814,0.39582,4546.6,4546.5,1.59888222]
[1759661325516,1.57029176,4547.1,4546.9,0.2848]
[1759661325710,3.20987565,4547.4,4546.9,0.2848]
[1759661325711,0.00207565,4547.4,4547.3,1.0234]
[1759661325917,0.39782565,4547.4,4547.3,1.41916]
[1759661326112,0.00207565,4547.4,4547.3,1.41916]
[1759661326721,0.00207565,4547.4,4547.3,1.64016]
[1759661330419,0.00207565,4547.4,4547.3,6.64016]
[1759661330920,0.022,4547.9,4547.8,1.39401]
[1759661331119,0.022,4547.9,4547.8,1.61501]
[1759661331821,0.02469508,4547.9,4547.8,1.61501]
[1759661333823,0.42039508,4547.9,4547.8,1.61501]
[1759661334324,0.02469508,4547.9,4547.8,1.61501]
[1759661335015,0.42039508,4547.9,4547.8,1.61501]
[1759661336524,0.42039508,4547.9,4547.8,1.2193]
[1759661337222,0.42039508,4547.9,4547.8,1.61501]
[1759661337413,0.02469508,4547.9,4547.8,1.61501]
[1759661337619,0.42039508,4547.9,4547.8,1.61501]
[1759661339129,0.02469508,4547.9,4547.8,1.61501]
[1759661339327,0.42039508,4547.9,4547.8,1.61501]
[1759661340230,0.02469508,4547.9,4547.8,1.61501]